fUST/lending_fUST_20241026
["ID","MTS","AMOUNT","RATE_DAILY","PERIOD"]
[340845797,1729922827610,-502.92175967,0.0003863,120]
[340845798,1729922827635,-500.0,0.0003863,120]
[340845799,1729922827661,-500.0,0.0003863,120]
[340845800,1729922827686,-500.0,0.0003863,120]
[340845801,1729922827717,-519.91,0.0003863,120]
[340845802,1729922827743,-498.98510234,0.0003863,120]
[340845803,1729922827770,-500.0,0.0003863,120]
[340845804,1729922827796,-500.0,0.0003863,120]
[340845805,1729922827822,-543.51678359,0.0003863,120]
[340845806,1729922827847,-500.0,0.0003863,120]
[340845807,1729922827872,-508.40765668,0.0003863,120]
[340845808,1729922827897,-742.5,0.0003863,120]
[340845809,1729922827921,-1556.5,0.0003863,120]
[340845810,1729922827949,-500.0,0.0003863,120]
[340845811,1729922827974,-500.0,0.0003863,120]
[340845812,1729922827998,-501.10771816,0.0003863,120]
[340845813,1729922828023,-500.0,0.0003863,120]
[340845814,1729922828048,-501.79846408,0.0003863,120]
[340845815,1729922828074,-500.0,0.0003863,120]
[340845816,1729922828098,-500.0,0.0003863,120]
[340845817,1729922828123,-500.0,0.0003863,120]
[340845818,1729922828150,-255.41851554,0.0003863,120]
[340845819,1729922828178,-529.75,0.0003863,120]
[340845820,1729922828203,-500.0,0.0003863,120]
[340845821,1729922828229,-1055.85,0.0003863,120]
[340845822,1729922828254,-500.0,0.0003863,120]
[340845823,1729922828278,-500.0,0.0003863,120]
[340845824,1729922828302,-517.58044143,0.0003863,120]
[340845825,1729922828326,-500.0,0.0003863,120]
[340845826,1729922828507,-500.0,0.0003863,120]
[340845827,1729922828532,-500.0,0.0003863,120]
[340845828,1729922828558,-500.0,0.0003863,120]
[340845829,1729922828583,-500.0,0.0003863,120]
[340845830,1729922828609,-503.75871765,0.0003863,120]
[340845831,1729922828636,-500.0,0.0003863,120]
[340845832,1729922828664,-500.0,0.0003863,120]
[340845833,1729922828689,-500.0,0.0003863,120]
[340845834,1729922828718,-500.0,0.0003863,120]
[340845835,1729922828743,-555.37842892,0.0003863,120]
[340845836,1729922828767,-419.25160835,0.0003863,120]
[340845837,1729922828795,-503.96397163,0.0003863,120]
[340845838,1729922828820,-503.48347841,0.0003863,120]
[340845839,1729922828845,-1021.03,0.0003863,120]
[340845840,1729922828870,-500.0,0.0003863,120]
[340845841,1729922828894,-519.1380502,0.0003863,120]
[340845842,1729922828919,-563.99,0.0003863,120]
[340845843,1729922828942,-500.0,0.0003863,120]
[340845844,1729922828967,-515.93809304,0.0003863,120]
[340845845,1729922828993,-165.81720485,0.0003863,120]
[340845846,1729922829020,-558.9529458,0.0003863,120]
[340845847,1729922829048,-500.0,0.0003863,120]
[340845848,1729922829072,-500.0,0.0003863,120]
[340845849,1729922829098,-500.0,0.0003863,120]
[340845850,1729922829124,-193.15661192,0.0003863,120]
[340845851,1729922829151,-500.0,0.0003863,120]
[340845852,1729922829178,-513.17837304,0.0003863,120]
[340845853,1729922829202,-500.0,0.0003863,120]
[340845854,1729922829227,-500.0,0.0003863,120]
[340845855,1729922829251,-500.0,0.0003863,120]
[340845856,1729922829275,-500.0,0.0003863,120]
[340845857,1729922829299,-588.75126483,0.0003863,120]
[340845858,1729922829324,-500.0,0.0003863,120]
[340845859,1729922829348,-500.0,0.0003863,120]
[340845860,1729922829374,-683.79,0.0003863,120]
[340845861,1729922829398,-506.48681471,0.0003863,120]
[340845862,1729922829421,-1000.0,0.0003863,120]
[340845863,1729922829445,-505.8390334,0.0003863,120]
[340845864,1729922829470,-503.99726906,0.0003863,120]
[340845865,1729922829494,-500.0,0.0003863,120]
[340845866,1729922829518,-502.30019818,0.0003863,120]
[340845867,1729922829542,-500.0,0.0003863,120]
[340845868,1729922829565,-500.0,0.0003863,120]
[340845869,1729922829589,-500.0,0.0003863,120]
[340845870,1729922829612,-506.61683002,0.0003863,120]
[340845871,1729922829636,-500.0,0.0003863,120]
[340845872,1729922829659,-500.0,0.0003863,120]
[340845873,1729922829684,-539.15,0.0003863,120]
[340845874,1729922829712,-500.0,0.0003863,120]
[340845875,1729922829736,-500.0,0.0003863,120]
[340845876,1729922829762,-500.0,0.0003863,120]
[340845877,1729922829788,-500.0,0.0003863,120]
[340845878,1729922829812,-806.51,0.0003863,120]
[340845879,1729922829838,-500.0,0.0003863,120]
[340845880,1729922829864,-500.0,0.0003863,120]
[340845881,1729922829888,-500.0,0.0003863,120]
[340845882,1729922829912,-1274.97,0.0003863,120]
[340845883,1729922829937,-818.92,0.0003863,120]
[340845884,1729922829962,-510.85444353,0.0003863,120]
[340845885,1729922829987,-1696.78,0.0003863,120]
[340845886,1729922830012,-682.77,0.0003863,120]
[340845887,1729922830036,-500.0,0.0003863,120]
[340845888,1729922830062,-504.99086963,0.0003863,120]
[340845889,1729922830086,-500.0,0.0003863,120]
[340845890,1729922830110,-500.0,0.0003863,120]
[340845891,1729922830134,-1069.12,0.0003863,120]
[340845892,1729922830159,-500.0,0.0003863,120]
[340845893,1729922830186,-500.0,0.0003863,120]
[340845894,1729922830210,-509.14550873,0.0003863,120]
[340845895,1729922830234,-500.0,0.0003863,120]
[340845896,1729922830260,-500.0,0.0003863,120]
[340845897,1729922830285,-500.0,0.0003863,120]
[340845898,1729922830310,-500.0,0.0003863,120]
[340845899,1729922830336,-500.0,0.0003863,120]
[340845900,1729922830363,-500.0,0.0003863,120]
[340845901,1729922830388,-507.12998079,0.0003863,120]
[340845902,1729922830415,-1031.89,0.0003863,120]
[340845903,1729922830444,-522.81867052,0.0003863,120]
[340845904,1729922830470,-500.0,0.0003863,120]
[340845905,1729922830496,-657.5,0.0003863,120]
[340845906,1729922830522,-919.35,0.0003863,120]
[340845907,1729922830548,-503.48365842,0.0003863,120]
[340845908,1729922830573,-501.84919928,0.0003863,120]
[340845909,1729922830601,-500.0,0.0003863,120]
[340845910,1729922830626,-587.5,0.0003863,120]
[340845911,1729922830653,-500.0,0.0003863,120]
[340845912,1729922830678,-500.0,0.0003863,120]
[340845913,1729922830705,-500.0,0.0003863,120]
[340845914,1729922830734,-500.0,0.0003863,120]
[340845915,1729922830760,-226.58298642,0.0003863,120]
[340845916,1729922830789,-500.0,0.0003863,120]
[340845917,1729922830819,-500.0,0.0003863,120]
[340845918,1729922830847,-500.0,0.0003863,120]
[340845919,1729922830876,-500.0,0.0003863,120]
[340845920,1729922830901,-500.0,0.0003863,120]
[340845921,1729922830929,-500.0,0.0003863,120]
[340845922,1729922830956,-500.0,0.0003863,120]
[340845923,1729922830982,-500.0,0.0003863,120]
[340845924,1729922831009,-838.34,0.0003863,120]
[340845925,1729922831035,-500.0,0.0003863,120]
[340845926,1729922831060,-840.45,0.0003863,120]
[340845927,1729922831088,-642.32630583,0.0003863,120]
[340845928,1729922831113,-217.92991013,0.0003863,120]
[340845929,1729922831140,-500.0,0.0003863,120]
[340845930,1729922831330,-500.0,0.0003863,120]
[340845931,1729922831358,-539.66,0.0003863,120]
[340845932,1729922831386,-323.12522319,0.0003863,120]
[340845933,1729922831412,-501.65142364,0.0003863,120]
[340845934,1729922831439,-500.0,0.0003863,120]
[340845935,1729922831466,-502.4804502,0.0003863,120]
[340845936,1729922831497,-1068.14,0.0003863,120]
[340845937,1729922831525,-500.0,0.0003863,120]
[340845938,1729922831559,-671.94,0.0003863,120]
[340845939,1729922831586,-500.0,0.0003863,120]
[340845940,1729922831613,-528.55872401,0.0003863,120]
[340845941,1729922831641,-200.0,0.0003863,120]
[340845942,1729922831668,-500.0,0.0003863,120]
[340845943,1729922831699,-500.0,0.0003863,120]
[340845944,1729922831728,-500.0,0.0003863,120]
[340845945,1729922831756,-651.68,0.0003863,120]
[340845946,1729922831783,-500.0,0.0003863,120]
[340845947,1729922831810,-500.0,0.0003863,120]
[340845948,1729922831835,-501.12198367,0.0003863,120]
[340845949,1729922831860,-690.97,0.0003863,120]
[340845950,1729922831887,-500.0,0.0003863,120]
[340845951,1729922831913,-500.0,0.0003863,120]
[340845952,1729922831938,-486.96364038,0.0003863,120]
[340845953,1729922831965,-25955.76,0.0003863,60]
[340845954,1729922831990,-500.0,0.0003863,120]
[340845955,1729922832018,-854.34,0.0003863,120]
[340845956,1729922832045,-500.0,0.0003863,120]
[340845957,1729922832071,-500.0,0.0003863,120]
[340845958,1729922832099,-476.42367811,0.0003863,30]
[340845959,1729922832125,-1000.0,0.0003863,120]
[340845960,1729922832154,-1115.62,0.0003863,120]
[340845961,1729922832183,-500.0,0.0003863,120]
[340845962,1729922832212,-2200.05,0.0003863,120]
[340845963,1729922832239,-500.0,0.0003863,120]
[340845964,1729922832268,-503.72901189,0.0003863,120]
[340845965,1729922832296,-629.76,0.0003863,120]
[340845966,1729922832324,-1907.85,0.0003863,120]
[340845967,1729922832350,-500.0,0.0003863,120]
[340845968,1729922832378,-500.0,0.0003863,120]
[340845969,1729922832406,-166.21115236,0.0003863,120]
[340845970,1729922832436,-2156.9,0.0003863,120]
[340845971,1729922832463,-500.0,0.0003863,120]
[340845972,1729922832489,-500.0,0.0003863,120]
[340845973,1729922832515,-502.32380153,0.0003863,120]
[340845974,1729922832542,-500.0,0.0003863,120]
[340845975,1729922832571,-500.0,0.0003863,120]
[340845976,1729922832598,-526.87384589,0.0003863,120]
[340845977,1729922832627,-500.0,0.0003863,120]
[340845978,1729922832656,-311.30354776,0.0003863,120]
[340845979,1729922832685,-500.0,0.0003863,120]
[340845980,1729922832717,-500.0,0.0003863,120]
[340845981,1729922832747,-943.32,0.0003863,120]
[340845982,1729922832776,-1041.41,0.0003863,120]
[340845983,1729922832808,-500.0,0.0003863,120]
[340845984,1729922832836,-500.0,0.0003863,120]
[340845985,1729922832867,-651.62,0.0003863,120]
[340845986,1729922832898,-500.0,0.0003863,30]
[340845987,1729922832925,-3371.57,0.0003863,120]
[340845988,1729922832952,-728.94,0.0003863,120]
[340845989,1729922832979,-500.0,0.0003863,120]
[340845990,1729922833006,-570.17,0.0003863,120]
[340845991,1729922833033,-748.84,0.0003863,120]
[340845992,1729922833061,-500.0,0.0003863,120]
[340845993,1729922833087,-529.32698887,0.0003863,120]
[340845994,1729922833112,-500.0,0.0003863,120]
[340845995,1729922833138,-538.73,0.0003863,120]
[340845996,1729922833165,-501.6295665,0.0003863,120]
[340845997,1729922833191,-500.0,0.0003863,120]
[340845998,1729922833219,-500.0,0.0003863,120]
[340845999,1729922833247,-625.81,0.0003863,120]
[340846000,1729922833276,-500.0,0.0003863,120]
[340846001,1729922833302,-500.0,0.0003863,120]
[340846002,1729922833331,-500.0,0.0003863,120]
[340846003,1729922833359,-1000.17,0.0003863,120]
[340846004,1729922833386,-500.0,0.0003863,120]
[340846005,1729922833415,-678.04,0.0003863,120]
[340846006,1729922833444,-529.84,0.0003863,120]
[340846007,1729922833472,-500.0,0.0003863,120]
[340846008,1729922833505,-560.14238916,0.0003863,120]
[340846009,1729922833537,-500.0,0.0003863,120]
[340846010,1729922833565,-500.0,0.0003863,120]
[340846011,1729922833593,-500.0,0.0003863,120]
[340846012,1729922833620,-500.0,0.0003863,120]
[340846013,1729922833652,-648.97,0.0003863,120]
[340846014,1729922833680,-500.0,0.0003863,120]
[340846015,1729922833710,-500.0,0.0003863,120]
[340846016,1729922833738,-500.0,0.0003863,120]
[340846017,1729922833764,-500.0,0.0003863,120]
[340846018,1729922833791,-500.0,0.0003863,120]
[340846019,1729922833818,-500.0,0.0003863,120]
[340846020,1729922833847,-502.28083835,0.0003863,120]
[340846021,1729922833876,-501.34392938,0.0003863,120]
[340846022,1729922833903,-500.0,0.0003863,120]
[340846023,1729922833931,-500.0,0.0003863,30]
[340846024,1729922833959,-505.55209131,0.0003863,120]
[340846025,1729922833986,-549.28,0.0003863,120]
[340846026,1729922834013,-458.04124245,0.0003863,120]
[340846027,1729922834041,-500.0,0.0003863,120]
[340846028,1729922834069,-962.66,0.0003863,120]
[340846029,1729922834096,-638.5,0.0003863,60]
[340846030,1729922834123,-700.16,0.0003863,120]
[340846031,1729922834150,-500.0,0.0003863,120]
[340846032,1729922834176,-500.0,0.0003863,120]
[340846033,1729922834360,-500.0,0.0003863,120]
[340846034,1729922834390,-500.0,0.0003863,120]
[340846035,1729922834416,-500.0,0.0003863,120]
[340846036,1729922834445,-500.0,0.0003863,120]
[340846037,1729922834471,-500.0,0.0003863,120]
[340846038,1729922834497,-500.0,0.0003863,120]
[340846039,1729922834523,-500.0,0.0003863,120]
[340846040,1729922834548,-1128.88,0.0003863,120]
[340846041,1729922834575,-500.0,0.0003863,120]
[340846042,1729922834600,-523.1,0.0003863,120]
[340846043,1729922834632,-5876.07,0.0003863,120]
[340846044,1729922834659,-500.0,0.0003863,120]
[340846045,1729922834686,-501.16596457,0.0003863,120]
[340846046,1729922834714,-500.0,0.0003863,120]
[340846047,1729922834741,-853.81,0.0003863,120]
[340846048,1729922834769,-838.79,0.0003863,120]
[340846049,1729922834797,-498.04479407,0.0003863,120]
[340846050,1729922834828,-500.0,0.0003863,120]
[340846051,1729922834854,-500.0,0.0003863,120]
[340846052,1729922834885,-590.88,0.0003863,120]
[340846053,1729922834915,-504.86321215,0.0003863,120]
[340846054,1729922834943,-757.11,0.0003863,120]
[340846055,1729922834972,-500.0,0.0003863,120]
[340846056,1729922835000,-543.37662178,0.0003863,120]
[340846057,1729922835028,-500.0,0.0003863,120]
[340846058,1729922835056,-500.0,0.0003863,120]
[340846059,1729922835082,-591.89,0.0003863,120]
[340846060,1729922835108,-500.0,0.0003863,120]
[340846061,1729922835134,-500.0,0.0003863,120]
[340846062,1729922835161,-658.79,0.0003863,120]
[340846063,1729922835189,-507.00360025,0.0003863,120]
[340846064,1729922835215,-500.0,0.0003863,120]
[340846065,1729922835241,-699.36,0.0003863,120]
[340846066,1729922835268,-500.0,0.0003863,120]
[340846067,1729922835293,-501.42760897,0.0003863,120]
[340846068,1729922835321,-501.13459718,0.0003863,120]
[340846069,1729922835348,-740.49,0.0003863,120]
[340846070,1729922835376,-500.0,0.0003863,120]
[340846071,1729922835403,-500.0,0.0003863,120]
[340846072,1729922835431,-12053.78,0.0003863,60]
[340846073,1729922835459,-500.0,0.0003863,120]
[340846074,1729922835485,-502.28147958,0.0003863,120]
[340846075,1729922835511,-500.0,0.0003863,120]
[340846076,1729922835538,-500.0,0.0003863,120]
[340846077,1729922835565,-596.71,0.0003863,120]
[340846078,1729922835591,-500.0,0.0003863,120]
[340846079,1729922835617,-618.89,0.0003863,120]
[340846080,1729922835644,-500.0,0.0003863,120]
[340846081,1729922835671,-500.0,0.0003863,120]
[340846082,1729922835700,-500.0,0.0003863,120]
[340846083,1729922835732,-852.92,0.0003863,120]
[340846084,1729922835758,-500.0,0.0003863,120]
[340846085,1729922835787,-500.0,0.0003863,120]
[340846086,1729922835815,-500.0,0.0003863,120]
[340846087,1729922835843,-501.95413976,0.0003863,120]
[340846088,1729922835869,-500.0,0.0003863,120]
[340846089,1729922835897,-714.12,0.0003863,120]
[340846090,1729922835924,-2465.37,0.0003863,120]
[340846091,1729922835950,-1004.2,0.0003863,120]
[340846092,1729922835976,-500.0,0.0003863,120]
[340846093,1729922836002,-501.4106459,0.0003863,120]
[340846094,1729922836030,-4091.94,0.0003863,120]
[340846095,1729922836056,-1002.25295236,0.0003863,120]
[340846096,1729922836082,-566.51043542,0.0003863,120]
[340846097,1729922836108,-500.0,0.0003863,120]
[340846098,1729922836136,-520.43709815,0.0003863,120]
[340846099,1729922836162,-244.12115038,0.0003863,120]
[340846100,1729922836190,-500.0,0.0003863,30]
[340846101,1729922836218,-500.0,0.0003863,60]
[340846102,1729922836246,-500.0,0.0003863,120]
[340846103,1729922836272,-6307.75,0.0003863,120]
[340846104,1729922836298,-500.0,0.0003863,120]
[340846105,1729922836325,-500.0,0.0003863,120]
[340846106,1729922836351,-1333.31,0.0003863,120]
[340846107,1729922836381,-500.0,0.0003863,120]
[340846108,1729922836409,-1109.11,0.0003863,120]
[340846109,1729922836436,-745.83,0.0003863,120]
[340846110,1729922836463,-500.0,0.0003863,120]
[340846111,1729922836488,-500.40037447,0.0003863,120]
[340846112,1729922836516,-663.59,0.0003863,120]
[340846113,1729922836543,-500.0,0.0003863,120]
[340846114,1729922836572,-3262.64,0.0003863,120]
[340846115,1729922836599,-500.0,0.0003863,120]
[340846116,1729922836626,-504.30580635,0.0003863,120]
[340846117,1729922836652,-755.36,0.0003863,120]
[340846118,1729922836678,-520.45289377,0.0003863,120]
[340846119,1729922836702,-500.0,0.0003863,120]
[340846120,1729922836734,-500.0,0.0003863,120]
[340846121,1729922836757,-500.0,0.0003863,120]
[340846122,1729922836784,-509.83,0.0003863,120]
[340846123,1729922836809,-1887.15,0.0003863,120]
[340846124,1729922836833,-500.0,0.0003863,120]
[340846125,1729922836858,-732.27,0.0003863,120]
[340846126,1729922836883,-500.0,0.0003863,120]
[340846127,1729922836906,-500.0,0.0003863,120]
[340846128,1729922836930,-666.9,0.0003863,120]
[340846129,1729922836955,-500.0,0.0003863,120]
[340846130,1729922836981,-500.0,0.0003863,120]
[340846131,1729922837006,-3097.42,0.0003863,120]
[340846132,1729922837030,-500.0,0.0003863,120]
[340846133,1729922837055,-1747.41,0.0003863,120]
[340846134,1729922837078,-701.22,0.0003863,120]
[340846135,1729922837102,-593.79,0.0003863,120]
[340846136,1729922837128,-3038.71,0.0003863,120]
[340846137,1729922837306,-500.0,0.0003863,120]
[340846138,1729922837331,-501.8354369,0.0003863,120]
[340846139,1729922837358,-500.0,0.0003863,120]
[340846140,1729922837384,-1236.57,0.0003863,120]
[340846141,1729922837409,-500.0,0.0003863,120]
[340846142,1729922837435,-500.0,0.0003863,120]
[340846143,1729922837459,-1866.69,0.0003863,120]
[340846144,1729922837484,-500.0,0.0003863,120]
[340846145,1729922837509,-610.14,0.0003863,120]
[340846146,1729922837533,-501.80221398,0.0003863,120]
[340846147,1729922837558,-617.34,0.0003863,120]
[340846148,1729922837591,-501.24677114,0.0003863,120]
[340846149,1729922837616,-624.57,0.0003863,120]
[340846150,1729922837644,-500.0,0.0003863,120]
[340846151,1729922837669,-500.0,0.0003863,120]
[340846152,1729922837695,-810.12,0.0003863,120]
[340846153,1729922837723,-563.04,0.000387,30]
[340846154,1729922837748,-1095.08,0.000387,30]
[340846155,1729922837773,-614.0,0.0003887,120]
[340846156,1729922837799,-614.0,0.0003888,120]
[340846157,1729922837825,-614.0,0.0003889,120]
[340846158,1729922837853,-1095.08,0.000389,30]
[340846159,1729922837880,-563.05,0.000389,30]
[340846160,1729922837905,-500.0,0.00038904,120]
[340846161,1729922837930,-500.0,0.00038904,120]
[340846162,1729922837965,-500.0,0.00038904,120]
[340846163,1729922837998,-500.0,0.00038904,120]
[340846164,1729922838032,-500.0,0.00038904,120]
[340846165,1729922838065,-502.3442425,0.00038904,120]
[340846166,1729922838099,-500.0,0.00038904,120]
[340846167,1729922838133,-500.94294601,0.00038904,120]
[340846168,1729922838167,-500.0,0.00038904,120]
[340846169,1729922838200,-560.27,0.00038904,120]
[340846170,1729922838237,-611.66,0.00038904,120]
[340846171,1729922838270,-529.03,0.00038904,120]
[340846172,1729922838304,-506.09432523,0.00038904,120]
[340846173,1729922838339,-500.0,0.00038904,120]
[340846174,1729922838373,-500.0,0.00038904,120]
[340846175,1729922838406,-614.4,0.00038904,120]
[340846176,1729922838443,-676.77,0.00038904,120]
[340846177,1729922838477,-1037.79,0.00038904,120]
[340846178,1729922838511,-357.21478833,0.00038904,120]
[340846179,1729922838546,-500.0,0.00038904,120]
[340846180,1729922838579,-403.28848446,0.00038904,120]
[340846181,1729922838613,-506.14186034,0.00038904,120]
[340846182,1729922838647,-561.85,0.00038904,120]
[340846183,1729922838681,-573.22,0.00038904,120]
[340846184,1729922838716,-500.0,0.00038904,120]
[340846185,1729922838749,-782.58,0.00038904,120]
[340846186,1729922838786,-605.51500377,0.00038904,120]
[340846187,1729922838824,-500.0,0.00038904,120]
[340846188,1729922838859,-503.07671995,0.00038904,120]
[340846189,1729922838892,-500.0,0.00038904,120]
[340846190,1729922838927,-504.78311667,0.00038904,120]
[340846191,1729922838961,-418.70241817,0.00038904,120]
[340846192,1729922838997,-501.71113594,0.00038904,120]
[340846193,1729922839031,-523.27207278,0.00038904,120]
[340846194,1729922839066,-502.0013799,0.00038904,120]
[340846195,1729922839103,-503.040623,0.00038904,120]
[340846196,1729922839135,-500.0,0.00038904,120]
[340846197,1729922839168,-500.0,0.00038904,120]
[340846198,1729922839201,-500.0,0.00038904,120]
[340846199,1729922839234,-500.0,0.00038904,120]
[340846200,1729922839267,-511.31,0.00038904,120]
[340846201,1729922839300,-500.0,0.00038904,120]
[340846202,1729922839333,-1069.36,0.00038904,120]
[340846203,1729922839366,-927.91009946,0.00038904,120]
[340846204,1729922839399,-500.0,0.00038904,120]
[340846205,1729922839432,-500.0,0.00038904,120]
[340846206,1729922839465,-500.0,0.00038904,120]
[340846207,1729922839501,-770.08,0.00038904,120]
[340846208,1729922839537,-587.05,0.00038904,120]
[340846209,1729922839572,-507.48936972,0.00038904,120]
[340846210,1729922839607,-500.0,0.00038904,120]
[340846211,1729922839642,-500.0,0.00038904,120]
[340846212,1729922839677,-500.0,0.00038904,120]
[340846213,1729922839710,-500.0,0.00038904,120]
[340846214,1729922839747,-500.0,0.00038904,120]
[340846215,1729922839780,-500.0,0.00038904,120]
[340846216,1729922839813,-506.61195704,0.00038904,120]
[340846217,1729922839846,-500.0,0.00038904,120]
[340846218,1729922839881,-500.59932326,0.00038904,120]
[340846219,1729922839913,-500.0,0.00038904,120]
[340846220,1729922839947,-500.0,0.00038904,120]
[340846221,1729922839981,-500.0,0.00038904,120]
[340846222,1729922840013,-500.0,0.00038904,120]
[340846223,1729922840046,-741.21,0.00038904,120]
[340846224,1729922840079,-500.0,0.00038904,120]
[340846225,1729922840112,-500.0,0.00038904,120]
[340846226,1729922840145,-500.0,0.00038904,120]
[340846227,1729922840179,-500.0,0.00038904,120]
[340846228,1729922840213,-500.0,0.00038904,120]
[340846229,1729922840247,-860.83,0.00038904,120]
[340846230,1729922840282,-500.0,0.00038904,120]
[340846231,1729922840314,-501.93640704,0.00038904,120]
[340846232,1729922840347,-501.77803929,0.00038904,120]
[340846233,1729922840379,-523.0,0.00038904,120]
[340846234,1729922840411,-500.91858965,0.00038904,120]
[340846235,1729922840443,-500.73670418,0.00038904,120]
[340846236,1729922840475,-500.0,0.00038904,120]
[340846237,1729922840508,-500.0,0.00038904,120]
[340846238,1729922840540,-501.08884236,0.00038904,120]
[340846239,1729922840572,-521.33494618,0.00038904,120]
[340846240,1729922840756,-500.84162194,0.00038904,120]
[340846241,1729922840796,-500.0,0.00038904,120]
[340846242,1729922840829,-701.19,0.00038904,120]
[340846243,1729922840862,-688.14,0.00038904,120]
[340846244,1729922840895,-187.60399636,0.00038904,120]
[340846245,1729922840928,-500.0,0.00038904,120]
[340846246,1729922840961,-508.32660044,0.00038904,120]
[340846247,1729922840993,-823.26,0.00038904,120]
[340846248,1729922841026,-500.0,0.00038904,120]
[340846249,1729922841058,-500.8358543,0.00038904,120]
[340846250,1729922841091,-501.46524018,0.00038904,120]
[340846251,1729922841123,-505.42586807,0.00038904,30]
[340846252,1729922841157,-696.3,0.00038904,120]
[340846253,1729922841190,-501.05546781,0.00038904,120]
[340846254,1729922841225,-500.0,0.00038904,120]
[340846255,1729922841257,-500.0,0.00038904,120]
[340846256,1729922841289,-502.01091733,0.00038904,120]
[340846257,1729922841320,-984.06,0.00038904,120]
[340846258,1729922841353,-500.0,0.00038904,120]
[340846259,1729922841386,-500.0,0.00038904,120]
[340846260,1729922841421,-1103.44,0.00038904,120]
[340846261,1729922841455,-500.0,0.00038904,120]
[340846262,1729922841490,-502.43627281,0.00038904,120]
[340846263,1729922841526,-381.24742012,0.00038904,120]
[340846264,1729922841563,-613.26,0.00038904,120]
[340846265,1729922841599,-1666.17,0.00038904,30]
[340846266,1729922841634,-500.0,0.00038904,120]
[340846267,1729922841667,-509.25193095,0.00038904,120]
[340846268,1729922841703,-793.48,0.00038904,120]
[340846269,1729922841737,-500.0,0.00038904,120]
[340846270,1729922841772,-500.0,0.00038904,120]
[340846271,1729922841808,-651.97,0.00038904,120]
[340846272,1729922841843,-838.88,0.00038904,120]
[340846273,1729922841876,-500.0,0.00038904,120]
[340846274,1729922841913,-500.0,0.00038904,120]
[340846275,1729922841946,-500.0,0.00038904,120]
[340846276,1729922841980,-500.0,0.00038904,120]
[340846277,1729922842014,-500.0,0.00038904,120]
[340846278,1729922842048,-500.0,0.00038904,120]
[340846279,1729922842082,-936.86,0.00038904,120]
[340846280,1729922842118,-1101.64,0.00038904,120]
[340846281,1729922842152,-500.0,0.00038904,120]
[340846282,1729922842187,-631.38,0.00038904,120]
[340846283,1729922842223,-500.0,0.00038904,120]
[340846284,1729922842261,-500.0,0.00038904,120]
[340846285,1729922842295,-506.8299753,0.00038904,120]
[340846286,1729922842333,-199.09607093,0.00038904,120]
[340846287,1729922842368,-500.0,0.00038904,120]
[340846288,1729922842403,-508.9562936,0.00038904,120]
[340846289,1729922842438,-952.51,0.00038904,120]
[340846290,1729922842472,-1050.85,0.00038904,120]
[340846291,1729922842507,-500.0,0.00038904,120]
[340846292,1729922842541,-500.0,0.00038904,120]
[340846293,1729922842574,-502.89897078,0.00038904,120]
[340846294,1729922842609,-504.5035816,0.00038904,120]
[340846295,1729922842642,-500.0,0.00038904,120]
[340846296,1729922842678,-500.0,0.00038904,120]